fUST/lending_fUST_20250217
["ID","MTS","AMOUNT","RATE_DAILY","PERIOD"]
[353290184,1739741451874,-500.0,9.487e-05,2]
[353290186,1739741451883,-500.0,9.487e-05,2]
[353290188,1739741451892,-500.0,9.487e-05,2]
[353290190,1739741451902,-500.0,9.487e-05,2]
[353290192,1739741451911,-500.18054463,9.487e-05,2]
[353290194,1739741451922,-152.12468117,9.488e-05,2]
[353290196,1739741451931,-500.0,9.488e-05,2]
[353290198,1739741451940,-500.0,9.488e-05,2]
[353290200,1739741451949,-150.6339786,9.488e-05,2]
[353290202,1739741451958,-500.0,9.488e-05,2]
[353290204,1739741451968,-13173.98308483,9.504e-05,2]
[353290206,1739741451977,-504.64830338,9.505e-05,2]
[353290208,1739741451986,-500.0,9.505e-05,2]
[353290211,1739741451996,-500.0,9.524e-05,2]
[353290212,1739741452005,-500.0,9.531e-05,2]
[353290214,1739741452014,-500.0,9.531e-05,2]
[353290216,1739741452024,-500.0,9.534e-05,2]
[353290218,1739741452033,-747.05736693,9.534e-05,2]
[353290221,1739741452044,-500.0,9.534e-05,2]
[353290222,1739741452053,-241.17708759,9.534e-05,2]
[353290224,1739741452063,-944.0,9.534e-05,2]
[353290226,1739741452072,-500.0,9.534e-05,2]
[353290228,1739741452081,-169.28245624,9.534e-05,2]
[353290230,1739741452090,-904.67,9.534e-05,2]
[353290232,1739741452099,-432.24462466,9.534e-05,2]
[353290234,1739741452108,-1009.84,9.534e-05,2]
[353290236,1739741452117,-1032.72,9.534e-05,2]
[353290238,1739741452126,-500.0,9.534e-05,2]
[353290240,1739741452135,-500.0,9.534e-05,2]
[353290242,1739741452145,-582.71,9.534e-05,2]
[353290244,1739741452154,-925.32,9.534e-05,2]
[353290246,1739741452163,-631.29,9.534e-05,2]
[353290248,1739741452172,-535.42,9.534e-05,2]
[353290250,1739741452181,-597.9,9.534e-05,2]
[353290252,1739741452191,-900.29,9.534e-05,2]
[353290254,1739741452200,-565.58,9.534e-05,2]
[353290256,1739741452210,-2587.49,9.534e-05,2]
[353290258,1739741452219,-1063.59,9.534e-05,2]
[353290260,1739741452228,-8470.64,9.534e-05,2]
[353290262,1739741452238,-505.41,9.534e-05,2]
[353290265,1739741452248,-1008.42,9.534e-05,2]
[353290267,1739741452259,-824.36,9.534e-05,2]
[353290269,1739741452268,-500.0,9.534e-05,2]
[353290271,1739741452277,-500.0,9.534e-05,2]
[353290272,1739741452287,-810.58,9.534e-05,2]
[353290275,1739741452297,-1325.12,9.534e-05,2]
[353290276,1739741452306,-500.0,9.534e-05,2]
[353290278,1739741452316,-528.73,9.534e-05,2]
[353290280,1739741452325,-559.11,9.534e-05,2]
[353290282,1739741452335,-1666.87,9.534e-05,2]
[353290284,1739741452345,-1877.29,9.534e-05,2]
[353290286,1739741452354,-1853.35,9.534e-05,2]
[353290288,1739741452363,-1177.87,9.534e-05,2]
[353290290,1739741452372,-7411.39,9.534e-05,2]
[353290292,1739741452381,-982.31,9.534e-05,2]
[353290294,1739741452391,-1852.29,9.534e-05,2]
[353290296,1739741452401,-3570.28,9.534e-05,2]
[353290298,1739741452410,-1837.4,9.534e-05,2]
[353290300,1739741452420,-623.61,9.534e-05,2]
[353290302,1739741452429,-664.93,9.534e-05,2]
[353290304,1739741452438,-500.0,9.534e-05,2]
[353290316,1739741452447,-500.0,9.534e-05,2]
[353290318,1739741452545,-19062.17,9.534e-05,2]
[353290320,1739741452554,-771.45,9.534e-05,2]
[353290322,1739741452563,-500.0,9.561e-05,2]
[353290324,1739741452573,-500.0,9.561e-05,2]
[353290326,1739741452582,-156.57246531,9.561e-05,2]
[353290327,1739741452594,-500.0,9.561e-05,2]
[353290329,1739741452604,-500.0,9.561e-05,2]
[353290331,1739741452613,-500.0,9.583e-05,2]
[353290333,1739741452623,-500.0,9.583e-05,2]
[353290335,1739741452632,-904.67,9.616e-05,2]
[353290337,1739741452642,-1009.84,9.616e-05,2]
[353290339,1739741452651,-1032.72,9.616e-05,2]
[353290341,1739741452662,-500.0,9.616e-05,2]
[353290343,1739741452674,-500.0,9.616e-05,2]
[353290345,1739741452684,-582.71,9.616e-05,2]
[353290347,1739741452693,-925.32,9.616e-05,2]
[353290349,1739741452702,-631.29,9.616e-05,2]
[353290351,1739741452713,-535.42,9.616e-05,2]
[353290353,1739741452722,-597.9,9.616e-05,2]
[353290355,1739741452732,-900.29,9.616e-05,2]
[353290358,1739741452743,-565.58,9.616e-05,2]
[353290360,1739741452753,-2587.49,9.616e-05,2]
[353290361,1739741452763,-1063.59,9.616e-05,2]
[353290363,1739741452772,-8470.64,9.616e-05,2]
[353290366,1739741452782,-505.41,9.616e-05,2]
[353290367,1739741452792,-1008.42,9.616e-05,2]
[353290369,1739741452802,-824.36,9.616e-05,2]
[353290371,1739741452811,-412.32522058,9.616e-05,2]
[353290373,1739741452821,-500.0,9.616e-05,2]
[353290375,1739741452831,-810.58,9.616e-05,2]
[353290377,1739741452840,-1325.12,9.616e-05,2]
[353290379,1739741452850,-153.6185149,9.616e-05,2]
[353290381,1739741452859,-528.73,9.616e-05,2]
[353290383,1739741452869,-559.11,9.616e-05,2]
[353290385,1739741452879,-1666.87,9.616e-05,2]
[353290387,1739741452888,-1877.29,9.616e-05,2]
[353290389,1739741452898,-1853.35,9.616e-05,2]
[353290391,1739741452908,-1177.87,9.616e-05,2]
[353290393,1739741452917,-7411.39,9.616e-05,2]
[353290395,1739741452927,-982.31,9.616e-05,2]
[353290397,1739741452936,-1852.29,9.616e-05,2]
[353290399,1739741452946,-3570.28,9.616e-05,2]
[353290401,1739741452956,-1837.4,9.616e-05,2]
[353290403,1739741452966,-623.61,9.616e-05,2]
[353290405,1739741452975,-664.93,9.616e-05,2]
[353290407,1739741452985,-195.2508049,9.616e-05,2]
[353290409,1739741452995,-500.0,9.616e-05,2]
[353290411,1739741453004,-19062.17,9.616e-05,2]
[353290413,1739741453014,-771.45,9.616e-05,2]
[353290415,1739741453023,-904.67,9.698e-05,2]
[353290418,1739741453033,-1009.84,9.698e-05,2]
[353290419,1739741453043,-1032.72,9.698e-05,2]
[353290421,1739741453053,-500.0,9.698e-05,2]
[353290423,1739741453063,-500.0,9.698e-05,2]
[353290425,1739741453072,-582.71,9.698e-05,2]
[353290427,1739741453082,-925.32,9.698e-05,2]
[353290429,1739741453092,-631.29,9.698e-05,2]
[353290431,1739741453101,-535.42,9.698e-05,2]
[353290433,1739741453110,-597.9,9.698e-05,2]
[353290435,1739741453120,-900.29,9.698e-05,2]
[353290437,1739741453130,-565.58,9.698e-05,2]
[353290439,1739741453140,-2587.49,9.698e-05,2]
[353290441,1739741453150,-1063.59,9.698e-05,2]
[353290443,1739741453160,-8470.64,9.698e-05,2]
[353290445,1739741453169,-505.41,9.698e-05,2]
[353290447,1739741453179,-1008.42,9.698e-05,2]
[353290449,1739741453188,-824.36,9.698e-05,2]
[353290451,1739741453197,-349.2684964,9.698e-05,2]
[353290453,1739741453208,-810.58,9.698e-05,2]
[353290455,1739741453217,-1325.12,9.698e-05,2]
[353290457,1739741453227,-528.73,9.698e-05,2]
[353290459,1739741453239,-559.11,9.698e-05,2]
[353290461,1739741453249,-1666.87,9.698e-05,2]
[353290463,1739741453258,-1877.29,9.698e-05,2]
[353290465,1739741453267,-1853.35,9.698e-05,2]
[353290467,1739741453276,-1177.87,9.698e-05,2]
[353290469,1739741453286,-7411.39,9.698e-05,2]
[353290471,1739741453297,-982.31,9.698e-05,2]
[353290473,1739741453306,-1852.29,9.698e-05,2]
[353290475,1739741453316,-3570.28,9.698e-05,2]
[353290477,1739741453326,-1837.4,9.698e-05,2]
[353290479,1739741453335,-623.61,9.698e-05,2]
[353290481,1739741453345,-664.93,9.698e-05,2]
[353290483,1739741453355,-500.0,9.698e-05,2]
[353290485,1739741453365,-19062.17,9.698e-05,2]
[353290487,1739741453374,-771.45,9.698e-05,2]
[353290489,1739741453384,-934.0,9.7e-05,2]
[353290491,1739741453393,-500.0,9.706e-05,2]
[353290493,1739741453403,-13173.98308483,9.719e-05,2]
[353290495,1739741453412,-500.0,9.737e-05,2]
[353290497,1739741453422,-904.67,9.78e-05,2]
[353290499,1739741453431,-1009.84,9.78e-05,2]
[353290501,1739741453441,-1032.72,9.78e-05,2]
[353290503,1739741453450,-500.0,9.78e-05,2]
[353290505,1739741453460,-500.0,9.78e-05,2]
[353290507,1739741453470,-582.71,9.78e-05,2]
[353290509,1739741453479,-925.32,9.78e-05,2]
[353290511,1739741453489,-631.29,9.78e-05,2]
[353290513,1739741453499,-535.42,9.78e-05,2]
[353290515,1739741453509,-597.9,9.78e-05,2]
[353290517,1739741453519,-900.29,9.78e-05,2]
[353290519,1739741453528,-565.58,9.78e-05,2]
[353290521,1739741453539,-2587.49,9.78e-05,2]
[353290523,1739741453549,-1063.59,9.78e-05,2]
[353290525,1739741453558,-8470.64,9.78e-05,2]
[353290527,1739741453568,-505.41,9.78e-05,2]
[353290529,1739741453578,-1008.42,9.78e-05,2]
[353290531,1739741453587,-824.36,9.78e-05,2]
[353290533,1739741453595,-810.58,9.78e-05,2]
[353290535,1739741453605,-1325.12,9.78e-05,2]
[353290537,1739741453615,-528.73,9.78e-05,2]
[353290538,1739741453623,-559.11,9.78e-05,2]
[353290540,1739741453633,-1666.87,9.78e-05,2]
[353290542,1739741453643,-1877.29,9.78e-05,2]
[353290544,1739741453653,-1853.35,9.78e-05,2]
[353290546,1739741453664,-1177.87,9.78e-05,2]
[353290548,1739741453675,-7411.39,9.78e-05,2]
[353290550,1739741453687,-982.31,9.78e-05,2]
[353290552,1739741453697,-1852.29,9.78e-05,2]
[353290554,1739741453707,-3570.28,9.78e-05,2]
[353290556,1739741453716,-1837.4,9.78e-05,2]
[353290558,1739741453726,-623.61,9.78e-05,2]
[353290560,1739741453735,-664.93,9.78e-05,2]
[353290561,1739741453745,-500.0,9.78e-05,2]
[353290562,1739741453754,-19062.17,9.78e-05,2]
[353290563,1739741453764,-771.45,9.78e-05,2]
[353290564,1739741453774,-500.0,9.808e-05,2]
[353290565,1739741453784,-988.10678178,9.808e-05,2]
[353290566,1739741453796,-944.0,9.808e-05,2]
[353290567,1739741453805,-500.0,9.808e-05,2]
[353290568,1739741453814,-162.9154524,9.826e-05,2]
[353290569,1739741453823,-500.0,9.826e-05,2]
[353290570,1739741453833,-904.67,9.863e-05,2]
[353290571,1739741453842,-1009.84,9.863e-05,2]
[353290572,1739741453851,-1032.72,9.863e-05,2]
[353290573,1739741453860,-195.62718282,9.863e-05,2]
[353290574,1739741453870,-500.0,9.863e-05,2]
[353290575,1739741453879,-582.71,9.863e-05,2]
[353290576,1739741453888,-925.32,9.863e-05,2]
[353290577,1739741453898,-631.29,9.863e-05,2]
[353290578,1739741453907,-535.42,9.863e-05,2]
[353290579,1739741453916,-597.9,9.863e-05,2]
[353290581,1739741453926,-900.29,9.863e-05,2]
[353290583,1739741453936,-565.58,9.863e-05,2]
[353290585,1739741453946,-2587.49,9.863e-05,2]
[353290587,1739741453956,-1063.59,9.863e-05,2]
[353290589,1739741453966,-8470.64,9.863e-05,2]
[353290591,1739741453975,-505.41,9.863e-05,2]
[353290593,1739741453985,-1008.42,9.863e-05,2]
[353290595,1739741453995,-824.36,9.863e-05,2]
[353290597,1739741454005,-810.58,9.863e-05,2]
[353290599,1739741454014,-1325.12,9.863e-05,2]
[353290601,1739741454024,-528.73,9.863e-05,2]
[353290603,1739741454034,-559.11,9.863e-05,2]
[353290605,1739741454045,-1666.87,9.863e-05,2]
[353290607,1739741454055,-1877.29,9.863e-05,2]
[353290609,1739741454064,-1853.35,9.863e-05,2]
[353290611,1739741454073,-1177.87,9.863e-05,2]
[353290613,1739741454083,-7411.39,9.863e-05,2]
[353290615,1739741454092,-982.31,9.863e-05,2]
[353290617,1739741454101,-1852.29,9.863e-05,2]
[353290619,1739741454111,-3570.28,9.863e-05,2]
[353290621,1739741454121,-1837.4,9.863e-05,2]
[353290623,1739741454130,-623.61,9.863e-05,2]
[353290625,1739741454140,-664.93,9.863e-05,2]
[353290627,1739741454149,-500.0,9.863e-05,2]
[353290629,1739741454158,-19062.17,9.863e-05,2]
[353290631,1739741454168,-771.45,9.863e-05,2]
[353290633,1739741454178,-500.33894546,9.889e-05,2]
[353290635,1739741454188,-500.0,9.889e-05,2]
[353290637,1739741454197,-500.0,9.889e-05,2]
[353290648,1739741454293,-587.0,9.921e-05,2]
[353290650,1739741454304,-904.67,9.945e-05,2]
[353290652,1739741454314,-1009.84,9.945e-05,2]
[353290654,1739741454323,-1032.72,9.945e-05,2]
[353290656,1739741454333,-268.52180085,9.945e-05,2]
[353290658,1739741454343,-582.71,9.945e-05,2]
[353290660,1739741454352,-925.32,9.945e-05,2]
[353290662,1739741454362,-631.29,9.945e-05,2]
[353290664,1739741454371,-535.42,9.945e-05,2]
[353290666,1739741454381,-597.9,9.945e-05,2]
[353290668,1739741454391,-900.29,9.945e-05,2]
[353290670,1739741454400,-565.58,9.945e-05,2]
[353290672,1739741454410,-2587.49,9.945e-05,2]
[353290674,1739741454419,-1063.59,9.945e-05,2]
[353290676,1739741454429,-8470.64,9.945e-05,2]
[353290678,1739741454438,-505.41,9.945e-05,2]
[353290681,1739741454448,-1008.42,9.945e-05,2]
[353290682,1739741454457,-824.36,9.945e-05,2]
[353290685,1739741454467,-810.58,9.945e-05,2]
[353290686,1739741454477,-1325.12,9.945e-05,2]
[353290689,1739741454486,-528.73,9.945e-05,2]
[353290691,1739741454496,-559.11,9.945e-05,2]
[353290693,1739741454506,-1666.87,9.945e-05,2]
[353290695,1739741454516,-1877.29,9.945e-05,2]
[353290697,1739741454525,-1853.35,9.945e-05,2]
[353290699,1739741454535,-1177.87,9.945e-05,2]
[353290701,1739741454546,-7411.39,9.945e-05,2]
[353290702,1739741454556,-982.31,9.945e-05,2]
[353290704,1739741454565,-1852.29,9.945e-05,2]
[353290706,1739741454574,-3570.28,9.945e-05,2]
[353290708,1739741454583,-1837.4,9.945e-05,2]
[353290710,1739741454593,-623.61,9.945e-05,2]
[353290712,1739741454602,-664.93,9.945e-05,2]
[353290714,1739741454612,-473.28986838,9.945e-05,2]
[353290716,1739741454621,-19062.17,9.945e-05,2]
[353290718,1739741454630,-771.45,9.945e-05,2]
[353290720,1739741454639,-1008.60259608,9.993e-05,2]
[353290722,1739741454649,-591.95845758,9.993e-05,2]
[353290724,1739741454658,-7438.69753278,0.0001,2]
[353290726,1739741454671,-276.93350926,0.0001,2]
[353290728,1739741454680,-1000.0,0.0001,2]
[353290730,1739741454690,-2000.0,0.0001,2]
[353290732,1739741454700,-20000.000001,0.0001,2]
[353290734,1739741454709,-2000.0,0.0001,2]
[353290736,1739741454719,-150.0,0.0001,2]
[353290738,1739741454728,-2000.0,0.0001,2]
[353290740,1739741454738,-25499.43114742,0.0001,7]
[353290742,1739741454749,-3764.20146947,0.0001,7]
[353290744,1739741454759,-60038.179591,0.0001,2]
[353290746,1739741454768,-7438.69753278,0.0001,2]
[353290748,1739741454777,-7438.69753278,0.0001,2]
[353290750,1739741454787,-7438.69753278,0.0001,2]
[353290753,1739741454797,-13800.0,0.0001,2]
[353290755,1739741454806,-53336.0,0.0001,2]
[353290756,1739741454815,-200.0,0.0001,2]
[353290758,1739741454824,-59435.58579845,0.0001,2]
[353290761,1739741454834,-876.0,0.0001,2]
[353290763,1739741454843,-2200.0,0.0001,2]
[353290765,1739741454853,-151.0,0.0001,2]
[353290766,1739741454862,-1000.0,0.00010013,2]
[353290768,1739741454871,-13173.98308483,0.00010023,2]
[353290770,1739741454881,-904.67,0.00010027,2]
[353290772,1739741454890,-1009.84,0.00010027,2]
[353290774,1739741454899,-1032.72,0.00010027,2]
[353290776,1739741454908,-582.71,0.00010027,2]
[353290778,1739741454918,-925.32,0.00010027,2]
[353290780,1739741454927,-631.29,0.00010027,2]
[353290782,1739741454936,-535.42,0.00010027,2]
[353290784,1739741454946,-597.9,0.00010027,2]
[353290786,1739741454955,-900.29,0.00010027,2]
[353290788,1739741454965,-565.58,0.00010027,2]
[353290790,1739741454976,-2587.49,0.00010027,2]
[353290792,1739741454986,-1063.59,0.00010027,2]
[353290794,1739741454996,-8470.64,0.00010027,2]
[353290796,1739741455005,-505.41,0.00010027,2]
[353290798,1739741455015,-1008.42,0.00010027,2]
[353290801,1739741455025,-824.36,0.00010027,2]
[353290803,1739741455034,-810.58,0.00010027,2]
[353290804,1739741455044,-1325.12,0.00010027,2]
[353290806,1739741455054,-528.73,0.00010027,2]
[353290809,1739741455063,-559.11,0.00010027,2]
[353290811,1739741455073,-1666.87,0.00010027,2]
[353290813,1739741455083,-1877.29,0.00010027,2]
[353290815,1739741455092,-1853.35,0.00010027,2]
[353290816,1739741455101,-1177.87,0.00010027,2]
[353290818,1739741455111,-7411.39,0.00010027,2]
[353290821,1739741455122,-982.31,0.00010027,2]
[353290822,1739741455131,-1852.29,0.00010027,2]
[353290825,1739741455141,-3570.28,0.00010027,2]
[353290826,1739741455150,-1837.4,0.00010027,2]
[353290828,1739741455159,-623.61,0.00010027,2]
[353290830,1739741455168,-664.93,0.00010027,2]
[353290832,1739741455177,-19062.17,0.00010027,2]
[353290834,1739741455187,-771.45,0.00010027,2]
[353290836,1739741455197,-1000.0,0.00010035,2]
[353290838,1739741455207,-750.38596318,0.00010035,2]
[353290840,1739741455217,-1000.0,0.00010035,2]
[353290842,1739741455226,-670.82861777,0.00010035,2]
[353290845,1739741455236,-1000.0,0.00010035,2]
[353290847,1739741455245,-1000.0,0.00010035,2]
[353290849,1739741455255,-543.52801653,0.00010035,2]
[353290851,1739741455265,-1000.0,0.00010035,2]
[353290853,1739741455274,-501.07161273,0.00010035,2]
[353290855,1739741455283,-1000.0,0.00010035,2]
[353290856,1739741455292,-1000.0,0.00010035,2]
[353290858,1739741455301,-1000.0,0.00010036,2]
[353290860,1739741455311,-1000.0,0.00010036,2]
[353290863,1739741455321,-1000.0,0.00010036,2]
[353290865,1739741455330,-1000.0,0.00010072,2]
[353290867,1739741455339,-252.28711881,0.00010079,2]
[353290868,1739741455348,-1000.0,0.00010079,2]
[353290870,1739741455357,-500.0,0.00010082,2]
[353290872,1739741455366,-944.0,0.00010082,2]
[353290874,1739741455376,-500.0,0.00010082,2]
[353290876,1739741455386,-904.84021126,0.00010109,2]
[353290878,1739741455395,-1009.97061509,0.00010109,2]
[353290880,1739741455405,-1032.93767682,0.00010109,2]
[353290882,1739741455415,-582.90264383,0.00010109,2]
[353290884,1739741455424,-925.54290817,0.00010109,2]
[353290886,1739741455434,-631.50105563,0.00010109,2]
[353290888,1739741455443,-535.42270332,0.00010109,2]
[353290890,1739741455453,-598.03026446,0.00010109,2]
[353290892,1739741455463,-900.5275517,0.00010109,2]
[353290894,1739741455472,-565.79917595,0.00010109,2]
[353290896,1739741455481,-2587.67649365,0.00010109,2]
[353290899,1739741455491,-1063.7216932,0.00010109,2]
[353290901,1739741455501,-8470.71899927,0.00010109,2]
[353290902,1739741455510,-505.46029595,0.00010109,2]
[353290905,1739741455520,-1008.46444075,0.00010109,2]
[353290907,1739741455530,-824.53156492,0.00010109,2]
[353290908,1739741455540,-810.68036179,0.00010109,2]
[353290910,1739741455549,-1325.26116204,0.00010109,2]
[353290912,1739741455560,-528.90488268,0.00010109,2]
[353290914,1739741455570,-559.15915093,0.00010109,2]
[353290916,1739741455580,-1666.91780776,0.00010109,2]
[353290918,1739741455590,-1877.5203497,0.00010109,2]
[353290920,1739741455600,-1853.5,0.00010109,2]
[353290922,1739741455609,-1177.87080018,0.00010109,2]
[353290924,1739741455619,-7411.52422988,0.00010109,2]
[353290926,1739741455628,-982.38599102,0.00010109,2]
[353290929,1739741455638,-1852.46810767,0.00010109,2]
[353290931,1739741455648,-3570.28659082,0.00010109,2]
[353290933,1739741455659,-1837.4570493,0.00010109,2]
[353290935,1739741455672,-623.79607322,0.00010109,2]
[353290937,1739741455681,-665.13129887,0.00010109,2]
[353290939,1739741455691,-19062.18411365,0.00010109,2]
[353290941,1739741455701,-771.45,0.00010109,2]
[353290943,1739741455711,-1000.3239478,0.00010109,2]
[353290945,1739741455720,-500.0,0.00010109,2]
[353290947,1739741455730,-1000.0,0.00010109,2]
[353290949,1739741455739,-916.79402787,0.00010109,2]
[353290950,1739741455756,-1121.70952141,0.00010131,2]
[353290952,1739741455765,-1000.0,0.00010131,2]
[353290955,1739741455775,-13173.98308483,0.00010235,2]
[353290957,1739741455785,-1000.0,0.00010254,2]
[353290959,1739741455796,-1000.0,0.00010285,2]
[353290960,1739741455805,-500.0,0.00010356,2]
[353290963,1739741455815,-944.0,0.00010356,2]
[353290973,1739741455904,-500.0,0.00010356,2]
[353290975,1739741455914,-1000.0,0.00010374,2]
[353290977,1739741455924,-250.0,0.00010411,2]
[353290979,1739741455933,-1000.42245772,0.00010437,2]
[353290981,1739741455942,-1087.33980202,0.00010437,2]
[353290983,1739741455952,-166.1,0.00010548,2]
[353290985,1739741455962,-500.0,0.0001063,2]
[353290987,1739741455972,-944.0,0.0001063,2]
[353290989,1739741455982,-601.30157045,0.0001063,2]
[353290991,1739741455991,-13173.98308483,0.00010631,2]
[353290993,1739741456002,-3358.22881586,0.0001068,2]
[353290995,1739741456012,-400.0,0.00010685,2]
[353290997,1739741456021,-1000.0,0.000108,2]
[353290999,1739741456031,-500.0,0.00010904,2]
[353291001,1739741456042,-944.0,0.00010904,2]
[353291003,1739741456051,-823.0,0.00010913,2]
[353291005,1739741456061,-13173.98308483,0.00010928,2]
[353291007,1739741456071,-459.302119,0.00010959,2]
[353291010,1739741456080,-459.302119,0.00010959,2]
[353291012,1739741456090,-459.302119,0.00010959,2]
[353291014,1739741456099,-459.302119,0.00010959,2]
[353291016,1739741456109,-459.302119,0.00010959,2]
[353291018,1739741456118,-459.302119,0.00010959,2]
[353291019,1739741456127,-459.302119,0.00010959,2]
[353291022,1739741456137,-459.302119,0.00010959,2]
[353291023,1739741456146,-459.302119,0.00010959,2]
[353291025,1739741456156,-459.302119,0.00010959,2]
[353291028,1739741456166,-459.302119,0.00010959,2]
[353291030,1739741456177,-459.302119,0.00010959,2]
[353291031,1739741456186,-459.302119,0.00010959,2]
[353291033,1739741456195,-459.302119,0.00010959,2]
[353291034,1739741456205,-459.302119,0.00010959,2]
[353291035,1739741456215,-459.302119,0.00010959,2]
[353291036,1739741456224,-459.302119,0.00010959,2]
[353291037,1739741456234,-459.302119,0.00010959,2]
[353291038,1739741456243,-459.302119,0.00010959,2]
[353291039,1739741456253,-459.302127,0.00010959,2]
[353291041,1739741456262,-151.0,0.00010959,2]
[353291043,1739741456271,-151.0,0.00010959,2]
[353291045,1739741456281,-151.0,0.00010959,2]
[353291047,1739741456290,-151.0,0.00010959,2]
[353291049,1739741456300,-151.0,0.00010959,2]
[353291051,1739741456309,-151.0,0.00010959,2]
[353291053,1739741456319,-151.0,0.00010959,2]
[353291055,1739741456328,-151.0,0.00010959,2]
[353291057,1739741456338,-151.0,0.00010959,2]
[353291059,1739741456348,-151.0,0.00010959,2]
[353291061,1739741456358,-151.0,0.00010959,2]
[353291064,1739741456368,-151.0,0.00010959,2]
[353291066,1739741456377,-151.0,0.00010959,2]
[353291068,1739741456387,-153.577784,0.00010959,2]
[353291070,1739741456396,-256.773456,0.00010959,2]
[353291072,1739741456405,-256.773456,0.00010959,2]
[353291074,1739741456415,-256.773456,0.00010959,2]
[353291076,1739741456425,-256.773456,0.00010959,2]
[353291078,1739741456434,-256.773456,0.00010959,2]
[353291080,1739741456444,-256.773456,0.00010959,2]
[353291081,1739741456456,-256.773456,0.00010959,2]
[353291083,1739741456465,-256.773456,0.00010959,2]
[353291086,1739741456475,-256.773456,0.00010959,2]
[353291087,1739741456485,-256.773456,0.00010959,2]
[353291089,1739741456494,-256.773456,0.00010959,2]
[353291091,1739741456504,-256.773456,0.00010959,2]
[353291093,1739741456513,-256.773456,0.00010959,2]
[353291095,1739741456523,-256.773456,0.00010959,2]
[353291097,1739741456532,-256.773456,0.00010959,2]
[353291099,1739741456543,-256.773456,0.00010959,2]
[353291102,1739741456553,-256.773456,0.00010959,2]
[353291104,1739741456563,-256.773456,0.00010959,2]
[353291106,1739741456573,-256.773456,0.00010959,2]
[353291108,1739741456583,-256.773455,0.00010959,2]
[353291110,1739741456593,-980.198999,0.00010959,2]
[353291112,1739741456603,-980.198999,0.00010959,2]
[353291114,1739741456612,-980.198999,0.00010959,2]
[353291116,1739741456622,-980.198999,0.00010959,2]
[353291118,1739741456633,-980.198999,0.00010959,2]
[353291120,1739741456643,-980.198999,0.00010959,2]
[353291122,1739741456653,-980.198999,0.00010959,2]
[353291124,1739741456662,-980.198999,0.00010959,2]
[353291126,1739741456676,-782.943179,0.00010959,2]
[353291128,1739741456685,-980.198999,0.00010959,2]
[353291130,1739741456695,-782.943179,0.00010959,2]
[353291132,1739741456705,-980.198999,0.00010959,2]
[353291134,1739741456714,-782.943179,0.00010959,2]
[353291136,1739741456724,-980.198999,0.00010959,2]
[353291138,1739741456735,-782.943179,0.00010959,2]
[353291140,1739741456746,-980.198999,0.00010959,2]
[353291142,1739741456756,-782.943179,0.00010959,2]
[353291144,1739741456766,-980.199007,0.00010959,2]
[353291146,1739741456776,-782.943179,0.00010959,2]
[353291148,1739741456786,-782.943179,0.00010959,2]
[353291150,1739741456796,-782.943179,0.00010959,2]
[353291152,1739741456806,-782.943179,0.00010959,2]
[353291154,1739741456816,-782.943179,0.00010959,2]
[353291156,1739741456825,-782.943179,0.00010959,2]
[353291158,1739741456834,-782.943179,0.00010959,2]
[353291160,1739741456844,-782.943179,0.00010959,2]
[353291162,1739741456853,-782.943179,0.00010959,2]
[353291164,1739741456863,-782.943179,0.00010959,2]
[353291166,1739741456872,-782.943179,0.00010959,2]
[353291168,1739741456881,-782.943179,0.00010959,2]
[353291170,1739741456890,-782.943179,0.00010959,2]
[353291172,1739741456901,-782.943179,0.00010959,2]
[353291174,1739741456911,-782.943179,0.00010959,2]
[353291176,1739741456921,-1191.24406,0.00010959,2]
[353291179,1739741456931,-1191.24406,0.00010959,2]
[353291181,1739741456941,-1191.24406,0.00010959,2]
[353291183,1739741456951,-1191.24406,0.00010959,2]
[353291185,1739741456961,-1191.24406,0.00010959,2]